Cogmind - Beta 16.1 @@@ ROGUE MODE // 2026.02.17 @ 00:35:04 Player: peezed Result: Destroyed by G-47 Trooper with Particle Gun Performance ------------- Evolutions (2) 1000 Regions Visited (5) 1000 Robots Destroyed (66) 330 Value Destroyed (1465) 1465 Prototype IDs (2) 40 Alien Tech Used (0) 0 Bonus (180) 180 TOTAL SCORE: 4015 Bonus ------- Entered Garrisons 200 Friendly Fire -20 Cogmind --------- Core Integrity 0/550 Matter 252/300 Energy 136/240 System Corruption 0% Temperature Cool (6) Movement Core (150) Ox2 Location -8/Garrison Parts ------- > --- POWER (1) -------- Nuclear Core > --- PROPULSION (4) --- (None) > --- UTILITY (3) ------ (None) > --- WEAPON (3) ------- (None) > --- INVENTORY (5) ---- Small Storage Unit Terrain Scanner Peak State ------------ > --- POWER ------------ Improved Ion Engine > --- PROPULSION ------- Aluminum Leg Aluminum Leg Aluminum Leg Carbon-fiber Leg > --- UTILITY ---------- Small Storage Unit Hardened Light Armor Plating > --- WEAPON ----------- Particle Cannon Heavy Assault Rifle Improved Light Cannon > --- INVENTORY -------- Light Ion Engine Light Treads Light Treads EM Pulse Gun Beam Cannon Light Assault Rifle Grenade Launcher [Rating: 17] Favorites ----------- Power Light Ion Engine Engine Light Ion Engine Power Core Nuclear Core Propulsion Aluminum Leg Treads Light Treads Leg Aluminum Leg Utility Small Storage Unit Device Terrain Scanner Storage Small Storage Unit Processor Transport Network Coupler Protection Hardened Light Armor Plating Weapon Heavy Assault Rifle Energy Gun Medium Laser Energy Cannon Particle Cannon Ballistic Gun Heavy Assault Rifle Ballistic Cannon Improved Light Cannon Launcher Grenade Launcher Build | -11 -10 -9 -9 -8 -8 ------- Run | Yrd Mat Mat Min Mat Gar Slots Evolved 4 | . . 2 . 2 . Power . | . . . . . . Propulsion 2 | . . 1 . 1 . Utility 1 | . . . . 1 . Weapon 1 | . . 1 . . . Parts Attached 53 | 7 2 13 3 25 3 Power 9 | 1 1 2 1 2 2 Engine 6 | 1 1 2 1 . 1 Core 3 | . . . . 2 1 Reactor . | . . . . . . Propulsion 16 | 2 . 4 2 8 . Treads 4 | . . . . 4 . Leg 12 | 2 . 4 2 4 . Wheel . | . . . . . . Hover . | . . . . . . Flight . | . . . . . . Utility 8 | 1 1 1 . 4 1 Device 1 | . . . . 1 . Storage 3 | 1 1 . . 1 . Processor 1 | . . . . . 1 Hackware . | . . . . . . Protection 3 | . . 1 . 2 . Artifact . | . . . . . . Weapon 20 | 3 . 6 . 11 . Energy Gun 5 | 2 . . . 3 . Energy Cannon 2 | . . 1 . 1 . Ballistic Gun 10 | 1 . 4 . 5 . Ballistic Cannon 1 | . . 1 . . . Launcher 2 | . . . . 2 . Special Weapon . | . . . . . . Impact Weapon . | . . . . . . Slashing Weapon . | . . . . . . Piercing Weapon . | . . . . . . Special Melee Weapon . | . . . . . . Unidentified Prototypes . | . . . . . . Parts Lost 23 | . . . . 13 10 Power 2 | . . . . . 2 Propulsion 8 | . . . . 5 3 Utility 3 | . . . . 2 1 Weapon 10 | . . . . 6 4 Highest Loss Streak 8 | . . . . 6 8 To Critical Strikes . | . . . . . . Average Backups 6 | 3 6 7 8 5 4 Power 1 | . . 1 1 2 1 Propulsion 2 | 2 3 3 3 1 . Utility . | . . . . . 1 Weapon 2 | . 2 3 4 1 . Tool/Special . | . . . . . . Unused Backups 6 | . 2 1 1 1 1 Power 1 | . . . . . 1 Propulsion 2 | . 2 . . . . Utility . | . . . . . . Weapon 3 | . . 1 1 1 . Tool/Special . | . . . . . . Average Slot Usage (%) 88 | . 98 97 100 80 49 Engine 8 | . 14 11 11 3 3 Core 2 | . . . . 5 3 Treads 4 | . . . . 12 . Leg 22 | . 28 33 33 9 14 Device 2 | . . . . 6 1 Storage 14 | . 26 17 11 11 5 Protection 5 | . . 4 11 4 4 Energy Gun 4 | . 14 4 . 2 4 Energy Cannon 5 | . . 3 11 5 . Ballistic Gun 12 | . 14 16 11 12 9 Ballistic Cannon 4 | . . 6 11 . . Launcher 1 | . . . . 3 . Peak Build Rating 17 | 6 7 14 16 17 16 Average Rating 11 | 3 6 11 13 12 8 On Entrance 9 | . 6 7 14 16 16 Avg Prop Armor Cover (%) 9 | . . . . 9 . Naked Turns 6 | . . . . . 6 Heaviest Build 28 | 12 14 26 28 28 20 Greatest Support 60 | 20 20 30 35 60 35 Greatest Overweight (x) 6 | 3 . . . 6 2 Average Overweight (x) . | 1 . . . . . Largest Inventory Capacity 8 | 8 8 8 8 8 8 Average Capacity 7 | 7 8 8 8 8 6 Most Carried 8 | 6 8 8 8 8 7 Average Carried 6 | 3 6 7 7 5 4 Final Capacity 8 | 8 8 8 8 8 5 Final Carried 8 | 4 8 8 8 7 2 Class Distribution -------------------- 45% | Scavenger-Tank 27% | Mutant 9% | Gunner 5% | Skirmisher 3% | Scavenger-Gunner 3% | Scavenger-Mutant 3% | Tank Dominant Class ---------------- Mutant | -10/Materials Scavenger-Tank | -9/Materials Scavenger-Tank | -9/Mines Scavenger-Tank | -8/Materials Mutant | -8/Garrison Resources | -11 -10 -9 -9 -8 -8 ----------- Run | Yrd Mat Mat Min Mat Gar Matter Collected 1387 | 190 75 242 204 676 . Remotely . | . . . . . . Salvage Created 1864 | . 91 733 126 818 96 Parts 145 | . 4 53 13 70 5 Haulers Intercepted 2 | . . . . 2 . Recyclers Shooed . | . . . . . . Parts Field Recycled . | . . . . . . Retrieved Matter . | . . . . . . Parts Self-Destructed . | . . . . . . Prevented . | . . . . . . Parts Restored . | . . . . . . Kills | -11 -10 -9 -9 -8 -8 ------- Run | Yrd Mat Mat Min Mat Gar Combat Hostiles Destroyed 50 | . 2 17 6 23 2 Guns 27 | . 2 14 1 8 2 Cannons 14 | . . 3 5 6 . AOE 9 | . . . . 9 . Classes Destroyed 10 | . 2 3 1 4 . Worker 4 | . . . . 4 . Builder 4 | . . . . 4 . Hauler 2 | . . . . 2 . Recycler 2 | . . 2 . . . Watcher 4 | . 1 1 . 2 . Swarmer 26 | . . 8 5 13 . Grunt 16 | . 2 6 . 6 2 Duelist 1 | . . . 1 . . Sentry 6 | . . 3 . 3 . Hunter 1 | . . . . 1 . Best Kill Streak 10 | . 1 9 3 10 2 Combat Bots Only 9 | . 1 9 3 7 2 Max Kills in Single Turn 3 | . 1 1 1 3 1 Gunslinging . | . . . . . . Exploded 3 | . . . . 3 . Melee . | . . . . . . Uniques/NPCs Destroyed . | . . . . . . Combat | -11 -10 -9 -9 -8 -8 -------- Run | Yrd Mat Mat Min Mat Gar Hostile Shots Fired 431 | . 9 65 19 242 96 Missed 112 | . 5 18 5 56 28 Hits 319 | . 4 47 14 186 68 Projectile 319 | . 4 47 14 186 68 Critical Strikes 10 | . . . . 5 5 Damage Taken 4000 | . 57 467 174 2372 930 Core 658 | . 12 76 19 282 269 Absorbed by Shields 61 | . . . . . 61 Regen/Repaired (Parts) 80 | . . . . 80 . Core Remaining (%) 90 | 100 95 . 76 . . Volleys Fired 158 | . 9 34 9 91 15 Largest 3 | . 2 3 3 3 3 Hottest 141 | . 70 124 124 141 110 Shots Fired 384 | . 18 91 27 224 24 Gun 256 | . 18 62 9 143 24 Cannon 110 | . . 29 18 63 . Launcher 18 | . . . . 18 . Special . | . . . . . . Kinetic 238 | . 9 62 18 131 18 Thermal 113 | . 9 29 9 60 6 Explosive 18 | . . . . 18 . Electromagnetic 15 | . . . . 15 . Robot Hit Streak 11 | . 4 6 2 11 5 Robot Miss Streak 9 | . 2 4 5 9 3 Penetration Max . | . . . . . . Secondary Targets 4 | . . 4 . . . Max Gunslinging Chain 1 | . . 1 . . . Shots Hit Robots 176 | . 9 46 7 104 10 Core Hits 110 | . 6 26 6 64 8 Critical Kills . | . . . . . . Critical Parts Destroyed . | . . . . . . Critical Strikes 1 | . . . . 1 . Corrupt 1 | . . . . 1 . Melee Attacks . | . . . . . . Impact . | . . . . . . Slashing . | . . . . . . Piercing . | . . . . . . Sneak Attacks . | . . . . . . Combat Hostiles . | . . . . . . Follow-up Attacks . | . . . . . . Damage Inflicted 3789 | . 142 764 174 2569 140 Guns 1651 | . 127 481 34 869 140 Cannons 1029 | . . 283 125 621 . Explosions 1076 | . . . . 1076 . Melee . | . . . . . . Ramming 33 | . 15 . 15 3 . Kinetic 1387 | . 38 496 76 669 108 Thermal 1207 | . 89 268 83 735 32 Explosive 1004 | . . . . 1004 . Electromagnetic 158 | . . . . 158 . Impact . | . . . . . . Slashing . | . . . . . . Piercing . | . . . . . . Highest Corruption 1 | . 1 . . . . Average Corruption 1 | . 1 . . . . Corruption Purged . | . . . . . . Corruption Blocked . | . . . . . . Overload Shots . | . . . . . . Overflow Damage 36 | . . . . 36 . Projectiles . | . . . . . . Explosions 36 | . . . . 36 . Melee . | . . . . . . Knockbacks 1 | . . 1 . . . Impact . | . . . . . . Kinetic 1 | . . 1 . . . Secondary . | . . . . . . Self-Inflicted Damage 90 | . 12 . . 78 . Shots 2 | . . . . 2 . Rammed 1 | . . . . 1 . Targets Rammed 6 | . 2 . 2 2 . Kicked 5 | . 2 . 2 1 . Crushed . | . . . . . . Highest Temperature 475 | . 27 384 258 475 212 Average Temperature 124 | . 12 120 107 140 109 Received Heat Transfer 1317 | . 24 93 . 693 507 Effects 12 | . . 6 . 6 . Shutdowns 4 | . . . . 4 . Interference 7 | . . 6 . 1 . Short Circuit 1 | . . . . 1 . Siege Activations . | . . . . . . Martial Activations . | . . . . . . Shielding Activations . | . . . . . . Robots Disrupted . | . . . . . . Combat Hostiles . | . . . . . . Robots Corrupted . | . . . . . . Combat Hostiles . | . . . . . . Parts Fried 1 | . . . . 1 . Impact Corruptions . | . . . . . . Robots Melted . | . . . . . . Combat Hostiles . | . . . . . . Parts Melted 3 | . . . 2 1 . Heat Transferred 2579 | . 259 629 148 1469 74 Parts Sabotaged . | . . . . . . Parts Stolen . | . . . . . . Parts Stripped . | . . . . . . Power Chain Reactions 1 | . . . . 1 . Alert | -11 -10 -9 -9 -8 -8 ------- Run | Yrd Mat Mat Min Mat Gar Maximum Alert Level 1 | . . 1 . 1 . Low Security (%) 72 | 100 100 39 100 46 100 Level 1 27 | . . 60 . 53 . Level 2 . | . . . . . . Level 3 . | . . . . . . Level 4 . | . . . . . . Level 5 . | . . . . . . High Security . | . . . . . . Max Security . | . . . . . . Peak Influence 281 | . 40 281 132 269 166 Initial 146 | . . . 106 20 146 Average 103 | . 7 178 47 160 130 Influence Increases 1511 | . 74 460 168 739 70 Destroy 0b10 Robot/C 1000 | . 40 340 120 460 40 Destroy 0b10 Robot/NC 80 | . 5 15 . 60 . Destroy Leader 212 | . 22 72 30 88 . Successful Hack 14 | . 7 . . 7 . Disable Machine 75 | . . 15 15 45 . Destroy Structure 70 | . . 3 3 64 . Lose Combat Pursuer 60 | . . 15 . 15 30 Influence Decreases 1395 | . 74 187 387 568 179 Entered New Map 280 | . . . 167 34 79 Time Decay 885 | . 74 187 220 404 . Lost Part 230 | . . . . 130 100 Squads Dispatched 7 | . 2 4 . 1 . Investigation . | . . . . . . Extermination . | . . . . . . Reinforcement 7 | . 2 4 . 1 . Assault . | . . . . . . Garrison . | . . . . . . Intercept . | . . . . . . Searches Triggered . | . . . . . . Construction Impeded 1 | . . . . 1 . Haulers Reinforced . | . . . . . . Active Scanning Responses . | . . . . . . Cargo Convoy Interrupts . | . . . . . . Stealth | -11 -10 -9 -9 -8 -8 --------- Run | Yrd Mat Mat Min Mat Gar Distress Signals 9 | . 2 1 . 6 . Communications Jammed . | . . . . . . Distress Signals . | . . . . . . Times Spotted 85 | . 7 25 7 37 9 Peak Tracking Total 7 | . 2 7 3 7 5 Tactical Retreats 3 | . . 1 . 1 1 Traps | -11 -10 -9 -9 -8 -8 ------- Run | Yrd Mat Mat Min Mat Gar Traps Triggered 3 | . . . 1 . 2 Indirectly . | . . . . . . Trap Hack Attempts . | . . . . . . Triggered . | . . . . . . Disarmed . | . . . . . . Reprogrammed . | . . . . . . Reused . | . . . . . . Traps Extracted . | . . . . . . Installed . | . . . . . . Triggered . | . . . . . . Machines | -11 -10 -9 -9 -8 -8 ---------- Run | Yrd Mat Mat Min Mat Gar Machines Disabled 6 | . . 2 1 3 . Max in Single Turn 1 | . . 1 1 1 . Machines Repaired . | . . . . . . Machines Dismantled . | . . . . . . Machines Sabotaged . | . . . . . . Overloaded Fab Kills . | . . . . . . Hacking | -11 -10 -9 -9 -8 -8 --------- Run | Yrd Mat Mat Min Mat Gar Machines Accessed 7 | . 3 . 1 3 . Terminals 4 | . 3 . . 1 . Fabricators . | . . . . . . Repair Stations 1 | . . . . 1 . Recycling Units . | . . . . . . Scanalyzers . | . . . . . . Garrison Access 1 | . . . . 1 . Total Hacks 11 | . 4 . 1 6 . Successful 9 | . 4 . 1 4 . Failed 2 | . . . . 2 . Catastrophic . | . . . . . . Database Lockouts . | . . . . . . Manual . | . . . . . . Terminals 7 | . 4 . . 3 . Fabricators . | . . . . . . Repair Stations 2 | . . . . 2 . Recycling Units . | . . . . . . Scanalyzers . | . . . . . . Garrison Access 1 | . . . . 1 . Terminal Hacks 6 | . 4 . 1 1 . Prototype ID Bank 1 | . 1 . . . . Open Door 1 | . . . 1 . . Alert Level 1 | . 1 . . . . Locate Traps 1 | . 1 . . . . Dispatch Records 1 | . . . . 1 . Surveillance Status 1 | . 1 . . . . Fabricator Hacks . | . . . . . . Repair Station Hacks 2 | . . . . 2 . Scan Component 1 | . . . . 1 . Repair 1 | . . . . 1 . Recycling Unit Hacks . | . . . . . . Scanalyzer . | . . . . . . Garrison Access Hacks 1 | . . . . 1 . Unlock Access 1 | . . . . 1 . Unauthorized Hacks . | . . . . . . Terminals . | . . . . . . Fabricators . | . . . . . . Repair Stations . | . . . . . . Recycling Units . | . . . . . . Scanalyzers . | . . . . . . Garrison Access . | . . . . . . Data Cores Recovered . | . . . . . . Used . | . . . . . . Hacking Detections 2 | . 1 . . 1 . Full Trace Events . | . . . . . . Feedback Events . | . . . . . . Feedback Blocked . | . . . . . . Robot Schematics Acquired . | . . . . . . Robots Built . | . . . . . . Authchips . | . . . . . . Time . | . . . . . . Total Robot Build Rating . | . . . . . . Part Schematics Acquired . | . . . . . . Parts Built . | . . . . . . Authchips . | . . . . . . Time . | . . . . . . Total Part Build Rating . | . . . . . . Part Studies Acquired . | . . . . . . Parts Repaired 1 | . . . . 1 . Time 26 | . . . . 26 . Parts Recycled . | . . . . . . Recycled Matter . | . . . . . . Retrieved Matter . | . . . . . . Retrieved Components . | . . . . . . Parts Scanalyzed . | . . . . . . Part Schematics Acquired . | . . . . . . Parts Damaged . | . . . . . . Bothacking | -11 -10 -9 -9 -8 -8 ------------ Run | Yrd Mat Mat Min Mat Gar Used RIF Installer . | . . . . . . Robots Hacked . | . . . . . . Non-combat . | . . . . . . Combat . | . . . . . . Robot Hacks Applied . | . . . . . . Relay Couplers Released . | . . . . . . Fabnet Peak Effective % . | . . . . . . Robots Rewired . | . . . . . . Allies Hacked . | . . . . . . Hacks Repelled . | . . . . . . Allies | -11 -10 -9 -9 -8 -8 -------- Run | Yrd Mat Mat Min Mat Gar Total Allies . | . . . . . . Largest Group . | . . . . . . Highest-Rated Group . | . . . . . . Highest-Rated Ally . | . . . . . . Total Orders . | . . . . . . Ally Attacks . | . . . . . . Total Damage . | . . . . . . Kills . | . . . . . . Allies Corrupted . | . . . . . . Allies Melted . | . . . . . . Intel | -11 -10 -9 -9 -8 -8 ------- Run | Yrd Mat Mat Min Mat Gar Active Infowar (turns) 796 | . . . . 694 102 Terrain 714 | . . . . 694 20 T.N.C. 82 | . . . . . 82 Robot Analysis Total . | . . . . . . Derelict Logs Recovered 1 | . . . 1 . . Drone Launches . | . . . . . . Drone Recoveries . | . . . . . . Exploration | -11 -10 -9 -9 -8 -8 ------------- Run | Yrd Mat Mat Min Mat Gar Turns Passed 2817 | 97 468 423 676 968 185 Spaces Moved 1712 | 59 349 242 530 423 109 Core 99 | 43 . . . 5 51 Treads 223 | . . . . 223 . Legs 1390 | 16 349 242 530 195 58 Wheels . | . . . . . . Hover . | . . . . . . Flight . | . . . . . . Fastest Speed 50 | 50 120 120 120 120 50 Average Speed 126 | 139 120 120 120 146 110 Slowest Speed 350 | 200 120 120 120 350 150 Overloaded Moves . | . . . . . . Propulsion Burnouts . | . . . . . . Robots Hopped . | . . . . . . Potential Cave-ins . | . . . . . . Cave-ins Triggered . | . . . . . . Exploration Rate (%) 35 | 5 47 30 84 28 17 Regions Visited 5 Branch Regions 1 Pre-discovered Areas 1 | . . . 1 . . Known Exits Taken 1 | . . . . 1 . Unknown Exits Taken 4 | 1 1 1 1 . . Scrap Searched 2 | . . . 2 . . Spaces Dug . | . . . . . . Terrain Destroyed 66 | . . . 3 63 . Melee . | . . . . . . Projectile 5 | . . . 3 2 . AOE 61 | . . . . 61 . Terrain Rammed 1 | . 1 . . . . Walls Destroyed . | . . . . . . Machines Disabled . | . . . . . . Actions | -11 -10 -9 -9 -8 -8 --------- Run | Yrd Mat Mat Min Mat Gar Total 2055 | 71 381 305 552 592 154 Wait 42 | . 9 5 2 26 . Move 1707 | 58 348 241 529 422 109 Hop . | . . . . . . Pick Up 29 | 6 7 3 2 11 . Fast Attach 13 | 4 1 1 . 7 . Attach 17 | 2 . 1 . 11 3 Detach 5 | . . . . 3 2 Swap 29 | 1 1 11 3 11 2 Drop 28 | . 3 9 5 8 3 Fire 158 | . 9 34 9 91 15 Melee . | . . . . . . Ram 1 | . 1 . . . . Kick 5 | . 2 . 2 1 . Crush 1 | . . . . 1 . Escape Stasis 20 | . . . . . 20 Rewire . | . . . . . . Trap . | . . . . . . Miscellaneous . | . . . . . . Route ------- -11/Scrapyard -10/Materials (discovered 2 exits: *Mat / [*Min]) -9/Materials -9/Mines (discovered 2 exits: *Mat x2) -8/Materials (discovered 2 exits: [*Fac] / Gar) -8/Garrison History --------- Turn | Location | Event 8 | -11/Scrapyard | Discovered new exit (range 15) 98 | -11/Scrapyard | Entered Materials 99 | -10/Materials | Met a group of wandering Federalists 304 | -10/Materials | Build established: Mutant 347 | -10/Materials | Discovered new exit (range 9) 495 | -10/Materials | Discovered new exit (range 7) 566 | -10/Materials | Entered another Materials area 566 | -9/Materials | Evolved 2 slots: Propulsion x1, Weapon x1 678 | -9/Materials | Destroyed 9 combat bots 902 | -9/Materials | Discovered new exit (range 16) 989 | -9/Materials | Entered Mines 1002 | -9/Mines | Met a Derelict bent on vengeance 1024 | -9/Mines | Learned Materials terminal intel 1037 | -9/Mines | Met a Derelict who couldn't figure out how to use a Trap Extractor 1108 | -9/Mines | Build established: Scavenger-Tank 1169 | -9/Mines | Found a hidden stash of uninstalled traps 1258 | -9/Mines | Discovered new exit (range 8) 1281 | -9/Mines | YI-UF0 nonchalantly dropped a Grenade Launcher on the ground 1510 | -9/Mines | Learned location of Storage (-7) 1606 | -9/Mines | A weapon hastily lodged in a ceiling crevice suddenly fell to the ground 1622 | -9/Mines | Discovered new exit (range 10) 1665 | -9/Mines | Entered Materials 1665 | -8/Materials | Evolved 2 slots: Propulsion x1, Utility x1 1666 | -8/Materials | Loaded intel: 12 terminal locations 1779 | -8/Materials | Destroyed 7 combat bots 1786 | -8/Materials | Lost 6 parts (2n1u3w) 2120 | -8/Materials | Destroyed 7 combat bots 2277 | -8/Materials | Core integrity fell below 50% 2522 | -8/Materials | Repaired Lgt. Armor Plating 2583 | -8/Materials | Discovered new exit (range 11) 2627 | -8/Materials | Identified exit to Garrison 2633 | -8/Materials | Entered Garrison 2691 | -8/Garrison | Triggered checkpoint 2765 | -8/Garrison | Lost 8 parts (1p3n1u3w) 2801 | -8/Garrison | Triggered checkpoint 2809 | -8/Garrison | Core integrity fell below 20% 2818 | -8/Garrison | Destroyed by G-47 Trooper with Particle Gun Last Messages --------------- 02792_ Field strength at 22. 02793_ Field strength at 16. 02801_ Beams of light sweep through the air. An alarm sounds. 02801_ Stasis field depleted. 02806_ Lgt. Nuclear Core destroyed. 02808_ Lgt. Assault Rifle destroyed. 02809_ Triggered Stasis Trap. 02809_ A bubble of rippling energy engulfs the area. 02809_ Field strength at 94. 02810_ Field strength at 84. 02811_ Field strength at 78. 02812_ Field strength at 68. 02813_ Field strength at 62. 02813_ Critical hit (Burn: +26). 02815_ Field strength at 42. 02816_ Field strength at 23. 02816_ Critical hit (Burn: +27). 02817_ Field strength at 13. Map ----- +----------------------------------------------------+ | ######???????????????????????????????? | | #???????????????????????????????? | | #???????????????????????????????? | | ### #???????????????????????????????? | | ??# #???????????????????????????????? | | ??# #???????????????????????????????? | | ??# #???????????????????????????????? | | ??# #???????????????????????????????? | | ??# #???????????????????????????????? | | ??# #???????????????????????????????? | | ??# #???????????????????????????????? | | ??# #???????????????????????????????? | | ??# #???????????????????????????????? | | ??# #???????????????????????????????? | | ??# #???????????????????????????????? | | ??# #???????????????????????????????? | | ??# #???????????????????????????????? | | ??# #???????????????????????????????? | | ??# #???????????????????????????????? | | ??# #???????#####???????????????????? | | ??# #???????# #???????????????????? | | ??# ######### ###########?????????? | | ??# = ** g #?????????? | | ??# #?????????? | | ??#######################g #?????????? | | ????????????????????????#@ #?????????? | | ????????????????????????#gg#?????????? | | ??????????????????????? ^#?????????? | | ??????????????????????# #?????????? | | ??????????????????????# #?????????? | | ??????????????????????### #?????????? | | ????????????????????????# #?????????? | | ????????????????????????# #?????????? | | ????????????????????????# #?????????? | | ????????????????????????# #?????????? | | ????????????????????????# #?????????? | | ???????????????????????? #?????????? | | ???????????????????????? #?????????? | | ????????????????????????###??????????? | | ?????????????????????????????????????? | | ?????????????????????????????????????? | | ?????????????????????????????????????? | | ?????????????????????????????????????? | | ?????????????????????????????????????? | | ?????????????????????????????????????? | | ?????????????????????????????????????? | | ?????????????????????????????????????? | | | | | | | +----------------------------------------------------+ Best States ------------- Heat Dissipation 31 Energy Generation 14 Energy Capacity 400 Matter Stores 300 Matter Capacity 300 Sight Range 16 Terrain Scan Range 14 Terrain Scan Density 10 Armor Coverage 150 Evasion (%) 55 Recoil Reduction 3 Item Schematics ----------------- None Robot Schematics ------------------ None Fabricated ------------ Nothing Repaired ---------- Lgt. Armor Plating | 11% | -8/Materials Studied --------- None Alien Tech Used ----------------- None Achievements -------------- Ghost 'Em Challenges ------------ None Game ------ Seed ContainmentSpliceAirjet Manual? 0 Play Time 00:43:13 Cumulative 3.2 hours Start 2026.02.15 @ 15:27:34 End 2026.02.17 @ 00:35:04 Sessions 3 Manual Loads 0 Difficulty Rogue Special Mode None Game No. 7 Rogue 3 Adventurer 4 Explorer 0 Win Type - Total 0 Types 0/0/0/0/0/0/0/0/0/0 Lore% 1 Gallery% 5 Achievement% 6 Wizard Run 0 Options --------- Layout 1 ASCII 0 Keyboard 1 Movement Arrows Keybinds 0 Fullscreen 1 Font 32/SmallcapsGlow Map View 50x35 Zoom Use 9% Tactical HUD 1 Map Filters NONE Filters NONE Steam 1 RUN: d9c45e1f-933c-4cea-bcbc-8391c27d3cea